bitfinex/quotes_SOLUSD_20260108
["timestamp","ask_amount","ask_price","bid_price","bid_amount"]
[1767845628864,0.67453166,136.66,136.63,0.66056941]
[1767845629058,0.67453166,136.66,136.63,4.09183583]
[1767845629259,0.67453166,136.66,136.64,0.66056941]
[1767845629655,7.31644069,136.68,136.64,0.66056941]
[1767845629871,0.67453166,136.67,136.64,0.66056941]
[1767845633085,0.67453166,136.67,136.65,0.66056941]
[1767845633282,7.99097235,136.68,136.65,0.66056941]
[1767845633470,7.99047495,136.69,136.65,0.66056941]
[1767845633678,0.67453166,136.69,136.66,0.66056941]
[1767845633873,5.57576958,136.69,136.66,0.60056941]
[1767845634680,0.67453166,136.69,136.66,11.34925775]
[1767845636291,0.67453166,136.69,136.66,4.03183583]
[1767845637171,0.67453166,136.69,136.66,3.43126642]
[1767845638292,7.31536028,136.7,136.67,0.66056941]
[1767845638790,7.31536028,136.7,136.67,4.09183583]
[1767845639166,0.67453166,136.71,136.68,4.09183583]
[1767845642192,0.67453166,136.71,136.68,7.97689294]
[1767845643784,0.67001657,136.73,136.7,0.65691766]
[1767845644503,0.67001657,136.73,136.7,0.59691766]
[1767845645000,0.67001657,136.72,136.67,7.31665616]
[1767845645198,0.67001657,136.72,136.67,3.43126642]
[1767845645895,0.67001657,136.72,136.68,3.43126642]
[1767845646597,0.67001657,136.72,136.68,4.08818408]
[1767845648676,0.67001657,136.7,136.66,4.08818408]
[1767845649496,0.67001657,136.7,136.66,0.65691766]
[1767845649804,0.67001657,136.7,136.66,7.97419658]
[1767845650775,7.31406388,136.73,136.69,0.65691766]
[1767845650996,0.67001657,136.73,136.69,4.08818408]
[1767845651694,1.37001657,136.72,136.69,4.08818408]
[1767845651894,1.37001657,136.72,136.69,11.40370424]
[1767845652079,0.67001657,136.72,136.69,11.40370424]
[1767845654403,0.67001657,136.72,136.7,3.43126642]
[1767845656591,0.67001657,136.72,136.7,10.74654289]
[1767845656993,0.67001657,136.72,136.7,3.43126642]
[1767845661004,0.67001657,136.72,136.69,7.97259381]
[1767845661194,0.67001657,136.72,136.7,3.43126642]
[1767845666509,0.67001657,136.72,136.7,2.19345552]
[1767845666813,0.1,136.74,136.71,0.65691766]
[1767845667110,0.1,136.74,136.73,2.19345552]
[1767845667294,0.1,136.74,136.73,2.13345552]
[1767845667695,0.67001657,136.76,136.73,2.13345552]
[1767845667895,0.67001657,136.76,136.73,2.79037318]
[1767845668710,0.67001657,136.76,136.73,2.13345552]
[1767845669103,0.67001657,136.76,136.74,2.19345552]
[1767845670708,0.67001657,136.76,136.73,7.97040897]
[1767845670914,0.67001657,136.76,136.74,2.19345552]
[1767845674519,0.68793499,136.77,136.74,10.17672081]
[1767845676120,0.78793499,136.78,136.76,2.19345552]
[1767845678628,0.78793499,136.78,136.75,10.17615545]
[1767845678835,0.78793499,136.78,136.76,2.19345552]
[1767845680628,0.78793499,136.78,136.75,2.86363628]
[1767845680931,0.78793499,136.78,136.75,0.67018076]
[1767845681430,0.68793499,136.77,136.74,0.67018076]
[1767845681627,0.68793499,136.77,136.73,7.98368889]
[1767845681815,0.68793499,136.77,136.74,0.67018076]
[1767845682018,0.68793499,136.77,136.74,10.17677315]
[1767845682732,0.68793499,136.77,136.74,7.98331763]
[1767845682930,0.68793499,136.77,136.74,10.17677315]
[1767845685629,0.68793499,136.77,136.74,2.86363628]
[1767845693844,0.1,136.78,136.76,2.86363628]
[1767845695740,0.1,136.78,136.76,10.17565334]
[1767845697139,0.1,136.78,136.76,2.86363628]
[1767845698248,0.78793499,136.78,136.75,2.86363628]
[1767845698847,0.78793499,136.78,136.75,10.17618102]
[1767845699027,0.1,136.78,136.76,0.67018076]
[1767845699225,0.1,136.78,136.77,2.86363628]
[1767845699426,8.09807414,136.8,136.77,2.86363628]
[1767845701437,0.78793499,136.82,136.79,2.8082241]
[1767845701745,0.78793499,136.82,136.78,0.61476858]
[1767845702039,0.78793499,136.82,136.79,2.8082241]
[1767845702425,0.1,136.82,136.8,0.61476858]
[1767845702735,0.1,136.82,136.81,0.61476858]
[1767845702919,0.68539963,136.85,136.81,0.55476858]
[1767845703119,5.57708975,136.85,136.81,2.7482241]
[1767845703345,0.68539963,136.84,136.81,0.55476858]
[1767845704245,0.68539963,136.83,136.78,15.55345552]
[1767845704637,0.68539963,136.83,136.78,2.19345552]
[1767845704822,0.68539963,136.82,136.79,2.19345552]
[1767845705827,7.99434541,136.82,136.78,2.5482241]
[1767845706854,7.99434541,136.82,136.78,9.85921562]
[1767845707453,0.68539963,136.82,136.78,9.85921562]
[1767845708459,0.68539963,136.85,136.81,0.35476858]
[1767845708745,0.68539963,136.85,136.81,2.5482241]
[1767845709344,0.68539963,136.85,136.81,0.35476858]
[1767845709542,0.68539963,136.84,136.8,2.5482241]
[1767845710336,0.68539963,136.84,136.8,9.85811883]
[1767845711047,0.78539963,136.86,136.82,2.5482241]
[1767845711252,0.78539963,136.86,136.81,2.5482241]
[1767845711849,0.78539963,136.86,136.82,2.19345552]
[1767845712236,0.68539963,136.85,136.8,9.85811883]
[1767845712551,0.68539963,136.85,136.81,0.35476858]
[1767845713059,0.68539963,136.85,136.81,2.5482241]
[1767845714937,7.9927101,136.85,136.81,2.5482241]
[1767845716356,0.68539963,136.85,136.81,9.85755086]
[1767845718359,7.99271496,136.85,136.81,9.85755086]
[1767845719462,0.68539963,136.85,136.82,0.35476858]
[1767845719948,7.99269377,136.85,136.81,2.5482241]
[1767845720139,0.68539963,136.84,136.8,2.5482241]
[1767845720961,0.68539963,136.84,136.8,9.85814326]
[1767845721644,0.68539963,136.84,136.81,2.19345552]
[1767845724556,0.68539963,136.85,136.82,0.35476858]
[1767845724959,0.78539963,136.86,136.83,0.35476858]
[1767845725459,0.78539963,136.86,136.83,2.5482241]
[1767845725665,0.78539963,136.86,136.83,0.35476858]
[1767845725854,0.78539963,136.86,136.82,2.5482241]
[1767845726767,0.78539963,136.86,136.82,11.08440273]
[1767845727475,0.78539963,136.86,136.83,3.77591125]
[1767845729349,0.78539963,136.86,136.83,0.35476858]
[1767845729552,0.78539963,136.86,136.83,7.66282794]
[1767845730079,0.78539963,136.86,136.83,11.08397061]
[1767845730885,0.78539963,136.86,136.83,7.66282794]
[1767845734052,0.78539963,136.86,136.83,7.30805936]
[1767845734578,0.78539963,136.86,136.83,10.72920203]
[1767845735673,0.78539963,136.86,136.83,11.08397061]
[1767845736185,0.1,136.86,136.84,0.35476858]
[1767845736474,1e-08,136.86,136.84,3.77591125]
[1767845736682,1e-08,136.86,136.84,0.35476858]
[1767845736842,1e-08,136.86,136.84,3.77591125]
[1767845737984,1e-08,136.86,136.85,7.66203931]
[1767845738491,1e-08,136.86,136.84,11.08347916]
[1767845738648,1e-08,136.86,136.84,7.66233649]
[1767845738956,1e-08,136.86,136.84,11.08347916]
[1767845739143,1e-08,136.86,136.85,0.35476858]
[1767845740273,1e-08,136.86,136.85,10.7284134]
[1767845740667,1e-08,136.86,136.85,7.30727073]
[1767845741370,1e-08,136.86,136.84,11.08355504]
[1767845743372,0.68873107,136.86,136.82,7.66347748]
[1767845743671,0.65873108,136.86,136.82,11.08462015]
[1767845745279,3.42114267,136.89,136.84,3.80591123]
[1767845745577,0.68873106,136.88,136.84,3.80591123]
[1767845746582,0.68873106,136.88,136.85,3.42114267]
[1767845746874,0.68873106,136.88,136.84,3.80591123]
[1767845747457,0.68873106,136.88,136.84,11.11337317]
[1767845750182,0.68873106,136.88,136.84,7.6922305]
[1767845750395,0.68873106,136.87,136.84,0.38476856]
[1767845751860,0.68873106,136.87,136.84,7.69252502]
[1767845753766,0.68873106,136.89,136.85,0.38476856]
[1767845753973,0.68873106,136.89,136.86,0.38476856]
[1767845754176,0.68873106,136.89,136.85,3.80591123]
[1767845754482,0.68873106,136.89,136.85,7.69203011]
[1767845755804,0.68873106,136.88,136.83,0.38476856]
[1767845756086,0.68873106,136.88,136.85,7.30725103]
[1767845759469,0.68873106,136.87,136.83,3.80591123]
[1767845759665,0.65873107,136.87,136.84,7.30771668]
[1767845761686,4.10987373,136.86,136.81,3.42114267]
[1767845761887,0.65873107,136.85,136.82,7.3088694]
[1767845762076,0.65873107,136.85,136.82,10.73001207]
[1767845763194,0.65873107,136.85,136.81,11.17510861]
[1767845763382,7.30739149,136.85,136.8,7.75447681]
[1767845763584,10.72853416,136.85,136.8,3.42114267]
[1767845763896,0.71501227,136.84,136.8,3.42114267]
[1767845764071,0.71501227,136.84,136.79,10.73138305]
[1767845764272,0.68501225,136.84,136.79,10.73138305]
[1767845764488,3.42114267,136.83,136.78,7.3108347]
[1767845764789,3.42114267,136.83,136.77,13.81476856]
[1767845764992,10.73001564,136.82,136.77,3.42114267]
[1767845765583,10.73001564,136.82,136.76,11.20767273]
[1767845765782,5.43959563,136.81,136.76,11.20767273]
[1767845765985,24.07001564,136.82,136.76,11.20767273]
[1767845766292,0.71501227,136.8,136.76,3.42114267]
[1767845766480,0.71501227,136.8,136.75,3.42114267]
[1767845767093,0.71501227,136.78,136.75,3.42114267]
[1767845767607,0.71501227,136.78,136.74,3.42114267]
[1767845769196,0.71501227,136.78,136.74,10.73425947]
[1767845769873,0.71501227,136.77,136.73,7.78825726]
[1767845770083,0.68501228,136.77,136.74,3.42114267]
[1767845770283,0.68501228,136.77,136.75,3.42114267]
[1767845770684,0.68501228,136.77,136.74,10.73428455]
[1767845770884,0.65501229,136.77,136.74,10.73428455]
[1767845771197,0.65501229,136.77,136.75,3.42114267]
[1767845771878,24.07126578,136.8,136.75,10.73374944]
[1767845772083,24.07126578,136.8,136.75,7.31260677]
[1767845772498,24.07126578,136.8,136.74,11.26883976]
[1767845772804,3.42114267,136.79,136.74,3.95591121]
[1767845773000,0.71501227,136.78,136.74,3.95591121]
[1767845773980,0.71501227,136.78,136.74,11.2689858]
[1767845774679,0.71501227,136.78,136.75,3.95591121]
[1767845774879,0.71501227,136.79,136.75,3.95591121]
[1767845775994,0.71501227,136.79,136.75,11.26817353]
[1767845781199,0.71501227,136.79,136.76,0.53476854]
[1767845781586,0.71501227,136.79,136.75,11.26817353]
[1767845782899,8.02553715,136.79,136.75,11.26817353]
[1767845783101,8.02553715,136.79,136.75,3.95591121]
[1767845784104,8.02553715,136.79,136.75,0.53476854]
[1767845784285,8.02553715,136.79,136.75,3.95591121]
[1767845784604,8.02553715,136.79,136.75,0.53476854]
[1767845784986,0.71501227,136.78,136.75,0.53476854]
[1767845785697,0.71501227,136.78,136.75,3.95591121]
[1767845787204,8.02615672,136.78,136.75,0.53476854]
[1767845787384,8.02615672,136.78,136.75,3.95591121]
[1767845788498,8.02615672,136.78,136.75,2.72666117]
[1767845789901,0.71501227,136.77,136.74,2.72666117]
[1767845790202,0.71501227,136.77,136.74,0.53476854]
[1767845790607,0.71501227,136.77,136.73,16.06666117]
[1767845790984,8.02678706,136.77,136.73,16.06666117]
[1767845791185,0.71501227,136.76,136.73,16.06666117]
[1767845791493,0.68501228,136.76,136.73,16.06666117]
[1767845792384,0.68501228,136.76,136.73,2.19189263]
[1767845792700,2.19189263,136.76,136.71,2.75666116]
[1767845793003,7.31261425,136.75,136.71,2.75666116]
[1767845793383,8.00783052,136.75,136.71,2.75666116]
[1767845796204,0.69521627,136.75,136.72,2.75666116]
[1767845796395,0.69521627,136.77,136.73,2.75666116]
[1767845797087,0.69521627,136.76,136.73,2.75666116]
[1767845797689,8.00741707,136.76,136.72,2.75666116]
[1767845798706,0.69521627,136.77,136.74,0.56476853]
[1767845799027,0.69521627,136.77,136.74,2.75666116]
[1767845799509,0.69521627,136.78,136.74,2.75666116]
[1767845800685,0.69521627,136.77,136.74,0.56476853]
[1767845801894,0.69521627,136.76,136.72,7.87889327]
[1767845802102,0.69521627,136.76,136.73,0.56476853]
[1767845802300,0.69521627,136.76,136.72,2.75666116]
[1767845802502,0.69521627,136.76,136.73,0.56476853]
[1767845802703,0.69521627,136.76,136.73,2.75666116]
[1767845803091,0.69521627,136.76,136.73,7.87834382]
[1767845803292,0.69521627,136.76,136.73,2.75666116]
[1767845804913,0.69521627,136.76,136.73,10.07032968]
[1767845805091,0.69521627,136.76,136.73,7.87843705]
[1767845805295,0.69521627,136.76,136.73,10.07032968]
[1767845805720,0.69521627,136.76,136.73,0.56476853]
[1767845805905,0.69521627,136.76,136.72,7.87878481]
[1767845806107,0.69521627,136.76,136.72,10.07067744]
[1767845807623,0.69521627,136.76,136.72,7.87878481]
[1767845807817,0.69521627,136.76,136.72,10.07067744]
[1767845811821,0.69521627,136.76,136.73,0.56476853]
[1767845812927,0.69521627,136.76,136.72,10.07067744]
[1767845813618,0.69521627,136.76,136.73,2.19189263]
[1767845813822,0.69521627,136.76,136.73,9.50557445]
[1767845814434,0.69521627,136.76,136.73,2.19189263]
[1767845815421,0.69521627,136.75,136.72,10.07066359]
[1767845817404,0.69521627,136.75,136.72,2.75666116]
[1767845818028,0.69521627,136.75,136.72,10.07080295]
[1767845820146,0.69521627,136.75,136.72,7.87891032]
[1767845820308,0.69521627,136.75,136.72,10.07080295]
[1767845820631,0.69521627,136.75,136.72,7.87891032]
[1767845820837,0.69521627,136.75,136.72,10.07080295]
[1767845821123,0.69521627,136.75,136.73,2.19189263]
[1767845821421,9.50310654,136.78,136.73,2.78666115]
[1767845821726,9.50310654,136.78,136.73,0.59476852]
[1767845821928,7.31121391,136.78,136.73,10.10032103]
[1767845823103,7.31121391,136.78,136.71,18.28642087]
[1767845823104,13.36,136.79,136.75,2.19189263]
[1767845823307,0.70773717,136.78,136.75,2.19189263]
[1767845824440,0.70773717,136.78,136.75,2.78666115]
[1767845824840,0.70773717,136.78,136.75,7.9072803]
[1767845825016,0.70773717,136.78,136.75,10.09917293]
[1767845825717,0.70773717,136.78,136.75,7.9072803]
[1767845825918,0.70773717,136.78,136.75,10.09917293]
[1767845827617,0.70773717,136.8,136.77,0.59476852]
[1767845828639,0.70773717,136.8,136.76,2.78666115]
[1767845829340,0.70773717,136.8,136.76,10.09838944]
[1767845829542,0.70773717,136.8,136.76,7.90649681]
[1767845829741,0.70773717,136.8,136.76,10.09838944]
[1767845831832,0.70773717,136.8,136.77,2.19189263]
[1767845832341,0.70773717,136.79,136.77,2.19189263]
[1767845833838,0.70773717,136.79,136.77,9.50336051]
[1767845834327,0.70773717,136.79,136.77,7.31146788]
[1767845834535,0.70773717,136.79,136.77,9.50336051]
[1767845834930,0.70773717,136.79,136.77,2.19189263]
[1767845835122,0.70773717,136.79,136.76,7.90674336]
[1767845835328,0.70773717,136.79,136.76,10.09863599]
[1767845835641,0.70773717,136.79,136.76,7.90674336]
[1767845835941,0.70773717,136.79,136.75,9.50428013]
[1767845836722,0.70773717,136.79,136.75,10.09904865]
[1767845837124,0.70773717,136.79,136.76,2.19189263]
[1767845839346,0.70773717,136.79,136.76,9.50395033]
[1767845839647,0.70773717,136.79,136.76,7.3120577]
[1767845839817,7.30965863,136.81,136.77,0.59476852]
[1767845839818,0.70773717,136.81,136.77,0.59476852]
[1767845840022,20.64901051,136.82,136.72,2.47621577]
[1767845840023,0.70773717,136.79,136.74,10.09944175]
[1767845840232,2.8996298,136.79,136.74,10.09944175]
[1767845840443,0.70773717,136.78,136.74,7.90754912]
[1767845840635,0.70773717,136.77,136.73,7.90822072]
[1767845841546,0.70773717,136.76,136.71,0.59476852]
[1767845841748,0.70773717,136.75,136.7,10.10163659]
[1767845842127,0.70773717,136.75,136.71,7.31463202]
[1767845843246,0.70773717,136.75,136.71,7.90940054]
[1767845843647,0.70773717,136.75,136.71,10.10129317]
[1767845844133,0.70773717,136.75,136.71,7.90940054]
[1767845847236,0.67773718,136.75,136.71,7.90940054]
[1767845851552,0.70773717,136.74,136.71,0.59476852]
[1767845851757,0.67773718,136.74,136.71,0.59476852]
[1767845853245,0.64773719,136.74,136.71,0.59476852]
[1767845858548,0.64773719,136.74,136.71,7.90919424]
[1767845859252,0.64773719,136.74,136.7,11.42663453]
[1767845859451,0.64773719,136.74,136.71,0.68476849]
[1767845860459,0.6177372,136.74,136.71,0.68476849]
[1767845860661,0.6177372,136.74,136.71,444.43945618]
[1767845860958,3.42690874,136.76,136.72,0.71476848]
[1767845861163,24.09873847,136.77,136.72,0.71476848]
[1767845861459,10.73873847,136.77,136.72,0.71476848]
[1767845861758,0.7,136.76,136.72,8.02892623]
[1767845862366,0.65399203,136.75,136.72,8.02892623]
[1767845863457,0.65399203,136.75,136.72,7.31415775]
[1767845864151,0.65399203,136.76,136.73,0.71476848]
[1767845864856,0.65399203,136.76,136.72,8.02892623]
[1767845866461,0.65399203,136.76,136.73,8.02842241]
[1767845867846,0.65399203,136.76,136.74,0.71476848]
[1767845871656,0.65399203,136.76,136.73,8.02842241]
[1767845873767,0.65399203,136.79,136.75,0.71476848]
[1767845873963,0.65399203,136.79,136.74,10.74001389]
[1767845874774,0.65399203,136.79,136.75,3.42690874]
[1767845874956,0.65399203,136.79,136.75,10.73913885]
[1767845875356,0.65399203,136.79,136.75,11.45390733]
[1767845877050,0.65399203,136.81,136.77,4.14167722]
[1767845877273,0.65399203,136.81,136.77,0.71476848]
[1767845877790,0.65399203,136.81,136.78,0.71476848]
[1767845877962,0.65399203,136.81,136.77,4.14167722]
[1767845878557,0.65399203,136.81,136.78,0.71476848]
[1767845878758,0.65399203,136.81,136.77,11.45292207]
[1767845880159,0.65399203,136.81,136.77,8.02601333]
[1767845880357,0.65399203,136.81,136.77,11.45292207]
[1767845880760,0.65399203,136.8,136.77,4.14167722]
[1767845880966,0.65399203,136.8,136.77,0.71476848]
[1767845881387,0.65399203,136.8,136.76,8.02662143]
[1767845882053,0.65399203,136.8,136.76,11.45353017]
[1767845882252,0.65399203,136.8,136.76,4.14167722]
[1767845882677,0.70557785,136.79,136.76,4.14167722]
[1767845883766,0.70557785,136.79,136.76,0.71476848]
[1767845883966,0.70557785,136.79,136.76,4.14167722]
[1767845884678,0.70557785,136.79,136.76,11.45371952]
[1767845885583,0.70557785,136.79,136.76,4.14167722]
[1767845886984,0.70557785,136.79,136.76,0.71476848]
[1767845888788,0.70557785,136.79,136.76,8.02680648]
[1767845889085,0.70557785,136.79,136.76,11.45371522]
[1767845890577,0.70557785,136.81,136.78,0.68789472]
[1767845891974,0.70557785,136.81,136.77,4.11480346]
[1767845892274,0.70557785,136.86,136.81,0.68789472]
[1767845892472,0.70557785,136.86,136.83,4.11480346]
[1767845892706,0.70557785,136.88,136.84,0.68789472]
[1767845892869,0.70557785,136.88,136.84,4.11480346]
[1767845893068,0.70557785,136.88,136.85,3.42690874]
[1767845893587,0.70557785,136.88,136.84,3.42690874]
[1767845894486,0.70557785,136.87,136.83,4.11480346]
[1767845894678,0.70557785,136.87,136.83,11.42308032]
[1767845895790,0.70557785,136.87,136.84,3.42690874]
[1767845898492,0.70557785,136.87,136.83,7.99617158]
[1767845898695,0.70557785,136.87,136.84,3.42690874]
[1767845901783,0.70557785,136.86,136.83,4.11480346]
[1767845902516,0.70557785,136.86,136.84,3.42690874]
[1767845902687,0.70557785,136.86,136.83,4.11480346]
[1767845902889,0.70557785,136.86,136.83,11.42300552]
[1767845904523,0.70557785,136.86,136.81,0.68789472]
[1767845904696,0.70557785,136.84,136.8,3.42690874]
[1767845905220,0.70557785,136.84,136.79,18.96334102]
[1767845905388,0.70557785,136.84,136.79,22.39024976]
[1767845905590,0.70557785,136.84,136.8,3.42690874]
[1767845905814,0.70557785,136.84,136.8,10.73675348]
[1767845906397,0.70557785,136.84,136.8,7.30984474]
[1767845906601,0.70557785,136.82,136.78,3.42690874]
[1767845906804,0.70557785,136.82,136.8,7.30980377]
[1767845908007,0.70557785,136.82,136.79,11.4250435]
[1767845909220,0.70557785,136.82,136.8,3.42690874]
[1767845909417,0.70557785,136.84,136.8,3.42690874]
[1767845909912,0.70557785,136.85,136.81,4.11480346]
[1767845910111,0.70557785,136.85,136.82,0.68789472]
[1767845910608,0.70557785,136.85,136.81,2.87771557]
[1767845911012,0.70557785,136.85,136.82,10.18658854]
[1767845911212,14.04557785,136.87,136.83,2.87771557]
[1767845913100,14.04557785,136.87,136.84,7.30780473]
[1767845914002,14.04557785,136.87,136.84,7.24786386]
[1767845914426,14.04557785,136.87,136.84,7.18786386]
[1767845914725,0.70557785,136.87,136.84,9.37768471]
[1767845917403,0.70557785,136.87,136.84,10.05777674]
[1767845918399,0.70557785,136.87,136.84,2.86991288]
[1767845918824,0.70557785,136.87,136.84,2.18982085]
[1767845919205,0.7193956,136.86,136.82,7.98881487]
[1767845919414,0.7193956,136.86,136.83,10.17814232]
[1767845921223,0.7193956,136.87,136.84,2.18982085]
[1767845922426,13.44,136.89,136.85,2.18982085]
[1767845922619,0.7193956,136.88,136.85,2.18982085]
[1767845924527,0.7193956,136.88,136.85,10.1769358]
[1767845925259,0.7193956,136.88,136.86,2.18982085]
[1767845925431,0.1,136.89,136.87,2.86991288]
[1767845926829,0.8193956,136.9,136.87,2.18982085]
[1767845927030,0.8193956,136.9,136.87,9.49586082]
[1767845927227,0.8193956,136.9,136.87,8.77086082]
[1767845927431,0.8193956,136.9,136.87,8.04586082]
[1767845927631,0.8193956,136.9,136.88,2.18982085]
[1767845927934,0.8193956,136.9,136.87,6.536132]
[1767845927935,0.1,136.92,136.91,0.68009203]
[1767845928116,0.1,136.92,136.91,0.62009203]
[1767845928315,0.1,136.92,136.87,24.12154738]
[1767845928515,0.1,136.92,136.89,2.18982085]
[1767845930137,0.1,136.92,136.89,0.68009203]
[1767845931824,0.1,136.92,136.89,2.86991288]
[1767845932913,0.1,136.92,136.89,0.68009203]
[1767845933225,0.17583592,136.92,136.89,0.68009203]
[1767845933422,0.07583592,136.91,136.88,2.86991288]
[1767845933836,0.17583592,136.92,136.88,0.68009203]
[1767845934037,0.17583592,136.92,136.88,2.86991288]
[1767845934634,7.4795154,136.92,136.88,2.86991288]
[1767845935729,0.07583592,136.91,136.88,2.86991288]
[1767845935934,0.07583592,136.91,136.87,2.86991288]
[1767845936437,0.07583592,136.91,136.87,0.68009203]
[1767845936635,0.07583592,136.9,136.87,0.68009203]
[1767845936844,0.07583592,136.9,136.85,7.98704577]
[1767845937036,0.07583592,136.9,136.85,2.86991288]
[1767845938039,0.07583592,136.89,136.85,10.17715841]
[1767845938934,0.07583592,136.89,136.85,0.68009203]
[1767845939124,0.07583592,136.88,136.84,0.68009203]
[1767845939943,7.38150511,136.88,136.84,0.68009203]
[1767845940261,0.07583592,136.87,136.83,2.86991288]
[1767845940442,0.07583592,136.87,136.83,0.68009203]
[1767845942523,0.07583592,136.86,136.81,0.68947768]
[1767845942748,0.07583592,136.86,136.82,2.89987861]
[1767845942749,0.04583593,136.86,136.82,2.89987861]
[1767845943040,2.23565678,136.86,136.82,0.71005776]
[1767845943249,0.04583593,136.86,136.82,0.71005776]
[1767845943427,7.35257274,136.86,136.82,0.71005776]
[1767845944724,0.04583593,136.85,136.82,0.71005776]
[1767845944933,7.35257274,136.86,136.82,0.71005776]
[1767845945325,2.23565678,136.86,136.82,0.71005776]
[1767845947045,9.54240269,136.86,136.82,0.71005776]
[1767845954652,2.23565678,136.86,136.82,0.71005776]
[1767845955347,0.04583593,136.86,136.82,0.71005776]
[1767845955558,2.23565678,136.86,136.82,0.71005776]
[1767845956652,9.5427449,136.86,136.82,0.71005776]
[1767845956843,0.04583593,136.85,136.82,0.71005776]
[1767845957155,7.30708812,136.86,136.83,0.71005776]
[1767845957331,7.3059572,136.88,136.84,0.71005776]
[1767845957536,7.3059572,136.88,136.85,0.71005776]
[1767845957840,7.30536095,136.89,136.85,0.71005776]
[1767845958257,7.30536095,136.89,136.86,0.71005776]
[1767845960153,22.88041878,136.9,136.86,0.71005776]
[1767845965272,20.69059793,136.9,136.86,0.71005776]
[1767845965562,22.88041878,136.9,136.86,0.71005776]
[1767845969247,7.35059793,136.9,136.86,0.71005776]
[1767845969648,7.304762,136.9,136.86,0.71005776]
[1767845971269,9.49458285,136.9,136.86,0.71005776]
[1767845972074,9.54041878,136.9,136.86,0.71005776]
[1767845972662,10.77056857,136.9,136.86,0.71005776]
[1767845975475,7.35059793,136.9,136.86,0.71005776]
[1767845975679,7.304762,136.9,136.86,0.71005776]
[1767845976175,7.35059793,136.9,136.86,0.71005776]
[1767845976674,0.04583593,136.89,136.85,10.72714898]
[1767845977361,7.304762,136.9,136.86,0.72469974]
[1767845981758,7.304762,136.9,136.85,10.72714898]
[1767845981759,7.4038856,136.92,136.89,0.72469974]
[1767845981964,7.54844724,136.92,136.89,0.72469974]
[1767845982485,0.24456164,136.92,136.89,0.72469974]
[1767845983976,0.1,136.92,136.89,0.72469974]
[1767845986596,7.40358834,136.92,136.89,0.72469974]
[1767845986779,7.54814998,136.92,136.89,0.72469974]
[1767845987868,0.71901154,136.91,136.88,0.72469974]
[1767845988883,11.54837305,136.92,136.88,0.72469974]
[1767845989493,7.44868388,136.91,136.88,0.72469974]
[1767845990396,0.14456164,136.91,136.88,0.72469974]
[1767845992171,7.44863978,136.91,136.88,0.72469974]
[1767845993698,0.14456164,136.91,136.88,0.72469974]
[1767845997394,0.15030614,136.91,136.88,0.72469974]
[1767845999485,7.45450743,136.91,136.88,0.72469974]
[1767846001380,0.15030614,136.91,136.88,0.72469974]
[1767846001575,10.82372622,136.92,136.91,0.72469974]
[1767846001576,1e-08,136.92,136.91,0.72469974]
[1767846001879,1e-08,136.92,136.91,0.66469974]
[1767846002081,1e-08,136.92,136.89,3.41997064]
[1767846003794,1e-08,136.92,136.9,0.71783776]
[1767846006596,1e-08,136.92,136.9,11.44233878]
[1767846007301,1e-08,136.92,136.9,0.71783776]
[1767846009184,1e-08,136.92,136.9,4.1378084]
[1767846009703,1e-08,136.92,136.9,0.71783776]
[1767846011600,1e-08,136.92,136.9,8.02241241]
[1767846011980,1e-08,136.92,136.9,11.44238305]
[1767846013905,1e-08,136.92,136.9,4.1378084]
[1767846014911,1e-08,136.92,136.9,0.71783776]
[1767846015204,1e-08,136.92,136.9,8.02240577]
[1767846018706,1e-08,136.92,136.9,11.44237641]
[1767846021910,1e-08,136.92,136.9,447.88237641]
[1767846022111,0.59695401,136.91,136.9,436.10611808]
[1767846022316,0.59695401,136.91,136.9,390.48177687]
[1767846024002,24.66099301,136.91,136.9,68.90646408]
[1767846024216,24.064039,136.91,136.86,0.71783776]
[1767846024386,0.099,136.87,136.81,8.02707257]
[1767846024589,3.41997064,136.86,136.82,0.71783776]
[1767846025003,16.75997064,136.87,136.82,0.71783776]
[1767846025338,16.75997064,136.89,136.85,0.71783776]
[1767846026507,0.46695402,136.88,136.85,0.71783776]
[1767846029001,17.22692466,136.89,136.85,0.71783776]
[1767846029218,0.46695402,136.9,136.86,0.71783776]
[1767846030107,0.46695402,136.9,136.86,4.1378084]
[1767846032104,13.80695402,136.91,136.88,0.71734574]
[1767846033314,0.46695402,136.91,136.88,0.71734574]
[1767846040333,2.18814295,136.92,136.89,0.71734574]
[1767846040334,0.46695403,136.92,136.89,0.71734574]
[1767846041427,0.46695403,136.92,136.89,2.90548868]
[1767846042512,1e-08,136.92,136.9,0.71734574]
[1767846043233,1e-08,136.92,136.9,0.65734574]
[1767846054338,1e-08,136.92,136.9,2.84548868]
[1767846058034,1e-08,136.92,136.9,0.65734574]
[1767846060140,1e-08,136.92,136.9,2.02814294]
[1767846061640,1e-08,136.92,136.91,2.18814294]
[1767846061842,0.56695402,136.93,136.91,2.18814294]
[1767846064948,0.1,136.93,136.92,0.69824416]
[1767846065134,0.1,136.93,136.92,0.63824416]
[1767846068449,0.1,136.93,136.9,0.69824416]
[1767846068654,0.1,136.93,136.91,0.69824416]
[1767846081542,0.1,136.93,136.89,0.69824416]
[1767846081543,13.44224675,136.92,136.89,0.69824416]